[Event "Leca Open 2022"]
[Site "Leca da Palmeira"]
[Date "2022.08.04"]
[Round "8.14"]
[White "Sismeiro, Miguel"]
[Black "Colijn, Stefan"]
[Result "1-0"]
[ECO "B42"]
[WhiteElo "2162"]
[BlackElo "2336"]
[Annotator "TA"]
[PlyCount "65"]
[EventDate "2022.08.02"]
[EventType "swiss"]
[EventCountry "POR"]
[SourceTitle "playchess.com"]
[Source "ChessBase"]
[SourceQuality "1"]
[TimeControl "5400+30"]

{[%evp 17,65,50,58,55,64,60,54,60,61,61,70,66,70,62,61,39,93,81,112,44,247,247,329,323,563,177,129,146,277,263,421,202,198,190,462,463,462,450,912,914,29977,29957,29991,29992,29992,29991,29991,29992,29992,29991]} 1. e4 {[%emt 0:00:02]} c5 {[%emt 0:04:17]} 2. Nf3 {[%emt 0:00:10]} e6 {[%emt 0:00:07]} 3. d4 {[%emt 0:00:11]} cxd4 {[%emt 0:00:02]} 4. Nxd4 {[%emt 0:00:07]} a6 {[%emt 0:00:06]} 5. Bd3 {[%emt 0:00:51]} Qb6 {[%emt 0:02:48]} 6. Nb3 {[%emt 0:00:37]} d6 {[%emt 0:02:51]} 7. O-O {[%emt 0:01:12]} Nf6 {[%emt 0:00:13]} 8. c4 {[%emt 0:03:56]} Be7 {[%emt 0:00:52]} 9. Nc3 {[%emt 0:01:14]} Qc7 {[%emt 0:03:26]} 10. Be3 {[%emt 0:05:40] B42: Sicilian: Kan Variation: 5 Bd3.} Nbd7 {[%emt 0:03:55]} 11. f4 {[%emt 0:07:33] White is more active.} b6 {[%emt 0:03:06]} 12. Rc1 {[%emt 0:09:34] White is slightly better.} Bb7 {[%emt 0:04:35]} 13. Nd2 {[%emt 0:10:18]} Rc8 {[%emt 0:02:40]} 14. a3 {[%emt 0:05:02]} Qb8 {[%emt 0:05:05]} 15. b4 {[%emt 0:01:58]} O-O {[%emt 0:19:54] [#]} 16. Qf3 $146 {[%emt 0:06:13]} ({Predecessor:} 16. Qe2 Rfe8 17. Bf2 Bf8 18. Bg3 g6 19. h3 Nh5 20. Bh2 f5 21. Qf2 Nhf6 22. Rfe1 {½-½ (43) Oral,T (2335)-Pugachov,A (2470) Mlada Boleslav 1993}) 16... g6 {[%emt 0:13:38]} (16... d5 $14) 17. Qh3 $16 {[%emt 0:03:06]} Rfe8 {[%emt 0:06:08]} 18. Nf3 {[%emt 0:08:55]} (18. f5 $16) 18... d5 $2 {[%emt 0:05:33] This move loses the game for Black.} ({Black should play} 18... Bf8 $1 $14) 19. cxd5 $18 {[%emt 0:08:15]} exd5 {[%emt 0:02:51][%cal Oc8c3]} 20. e5 {[%emt 0:00:25] And now Bd4 would win.} Ne4 $2 {[%emt 0:01:01]} (20... Nf8 21. exf6 Bxf6) 21. Nxd5 $2 {[%emt 0:03:17]} (21. Qxd7 Rxc3 22. Rxc3 Nxc3 $18) (21. e6 fxe6 22. Qxe6+ Kh8 23. Nxe4 (23. Bxe4 Bc5 $17)) 21... Bxd5 {[%emt 0:01:27]} 22. Qxd7 {[%emt 0:00:03]} Nc3 {[%emt 0:03:18]} (22... Rcd8 $16 23. Qa4 a5) 23. Qh3 {[%emt 0:04:38] Black must now prevent f5.} ({Weaker is} 23. Bxa6 Rc7 24. Qh3 Be6 $14) 23... a5 $2 {[%emt 0:01:44]} (23... f5 24. Nd4 (24. Bxa6 Rc7 $18) 24... Rf8 25. Bxa6 Rc7) 24. Bd4 $40 {[%emt 0:03:18][%mdl 128] White has strong attack.} (24. f5 $142) 24... Be6 {[%emt 0:04:05]} 25. Qg3 {[%emt 0:04:22]} Bf5 $2 {[%emt 0:01:10]} (25... axb4 26. axb4 Red8) 26. Rxc3 {[%emt 0:01:29]} Rxc3 {[%emt 0:00:34]} 27. Bxf5 {[%emt 0:00:03]} ({Less strong is} 27. Bxc3 Bxd3 28. Rd1 Be4 $14) 27... Rxa3 {[%emt 0:00:48]} (27... Rxf3 $142 28. Rxf3 axb4 29. axb4 Bxb4) 28. e6 {[%emt 0:01:39] exf7+ is the strong threat.} Bxb4 {[%emt 0:00:27] [#]} 29. Qh4 $1 {[%emt 0:01:01] White mates.} fxe6 {[%emt 0:06:35] [#]} (29... Rxe6 30. Ng5) 30. Qf6 $1 {[%emt 0:00:26][%csl Gd4][%cal Rf6g7]} e5 {[%emt 0:00:05]} 31. Be6+ {[%emt 0:00:12]} Rxe6 {[%emt 0:00:24]} 32. Qxe6+ {[%emt 0:00:09]} Kf8 {[%emt 0:00:07]} 33. Nxe5 {[%emt 0:00:13] Weighted Error Value: White=0.33/Black=0.91} 1-0

[Event "Leca Open 2022"]
[Site "Leca da Palmeira"]
[Date "2022.08.04"]
[Round "8.15"]
[White "Monteiro, Paulo Alexandre G"]
[Black "Cabezas Ayala, Ivan"]
[Result "1-0"]
[ECO "E92"]
[WhiteElo "1980"]
[BlackElo "2296"]
[Annotator "TA"]
[PlyCount "112"]
[EventDate "2022.08.02"]
[EventType "swiss"]
[EventCountry "POR"]
[SourceTitle "playchess.com"]
[Source "ChessBase"]
[SourceQuality "1"]
[TimeControl "5400+30"]

{[%evp 16,112,58,60,60,45,47,47,62,67,74,47,129,132,174,169,178,141,129,112,156,144,199,186,200,68,155,132,152,127,133,85,69,-118,-124,-129,-102,-123,-109,-118,165,56,62,61,82,-31,-28,-28,-18,-16,0,0,10,0,863,854,818,750,1247,850,1037,1033,1018,832,901,953,877,630,622,556,553,595,535,22,25,27,28,0,0,0,0,0,0,-29982,-29983,-29984,-29985,-29973,-29970,-29965,-6131,-29989,-29990,-29991,-29992,-29996,-29997,-29998,-2095]} 1. d4 {[%emt 0:00:06]} Nf6 {[%emt 0:00:07]} 2. c4 {[%emt 0:00:10]} g6 {[%emt 0:00:06]} 3. Nc3 {[%emt 0:00:13]} Bg7 {[%emt 0:00:06]} 4. e4 {[%emt 0:00:20]} d6 {[%emt 0:00:09]} 5. Nf3 {[%emt 0:00:20]} O-O {[%emt 0:00:19]} 6. Be2 {[%emt 0:00:24]} e5 {[%emt 0:00:12]} 7. Be3 {[%emt 0:00:24]} c6 {[%emt 0:02:39]} 8. d5 {[%emt 0:01:07]} Ng4 {[%emt 0:02:37]} 9. Bg5 {[%emt 0:01:28]} f6 {[%emt 0:04:52] E92: King's Indian: Classical: 6 Be2 e5: 7 dxe5, 7 Be3 and Petrosian System without 7...Nbd7.} 10. Bc1 {[%emt 0:02:49]} f5 {[%emt 0:02:56][%cal Og4f2]} 11. exf5 {[%emt 0:03:20]} gxf5 {[%emt 0:03:35] White is slightly better.} 12. Bg5 {[%emt 0:01:31]} Nf6 {[%emt 0:01:34]} 13. Qd2 {[%emt 0:04:26]} c5 {[%emt 0:02:04] [#]} (13... Qd7 $14) 14. Nh4 $146 {[%emt 0:05:23]} ({Predecessor:} 14. O-O Bd7 15. Qc2 Na6 16. a3 Nc7 17. Rad1 Qe8 18. Bxf6 Bxf6 19. Rfe1 Qg6 20. Bf1 Rae8 21. g3 {0-1 (35) Juhas,J (1782)-Klimes,M (1871) Slovakia 2012}) 14... Qe8 {[%emt 0:11:32]} 15. O-O-O {[%emt 0:17:40]} a6 {[%emt 0:00:54]} 16. f3 {[%emt 0:08:02][%cal Og2g4,Bf2f3,Bf3f4][%mdl 32]} b5 {[%emt 0:15:41]} 17. Bd3 {[%emt 0:04:52]} (17. cxb5 axb5 18. Nxb5 (18. Bxb5 Qh5 $14) 18... Qd7 $14) 17... b4 {[%emt 0:01:25]} 18. Ne2 {[%emt 0:00:50] White is more active.} (18. Nxf5 bxc3 19. Qxc3 (19. bxc3 $2 Bxf5 20. Bxf5 Nbd7 $19) 19... Bxf5 20. Bxf5 e4 $15) 18... e4 {[%emt 0:15:26]} (18... f4 $16 {might work better.}) 19. Bb1 $1 $18 {[%emt 0:05:50]} Nfd7 {[%emt 0:00:44]} 20. Qc2 {[%emt 0:11:45]} (20. fxe4 $18 Ne5 21. b3 (21. exf5 $2 Nxc4 22. Qd3 Nxb2 $19)) 20... Qh5 {[%emt 0:02:28]} ({Black should play} 20... Nb6 $1 $14) 21. f4 $1 $16 {[%emt 0:01:16]} Ne5 {[%emt 0:06:21]} 22. Ng3 $1 {[%emt 0:05:17]} Qg4 {[%emt 0:05:31]} 23. Qb3 {[%emt 0:07:47]} (23. Nxe4 $142 $1 fxe4 24. h3 (24. Qxe4 Qh5 $17)) 23... a5 {[%emt 0:07:55] Threatens to win with ...a4.} 24. a4 $2 {[%emt 0:11:47] [#]} (24. h3 $14 {keeps the upper hand.} a4 25. hxg4 axb3 26. fxe5 Bxe5 27. Nhxf5 bxa2 28. Bxa2 $1 Rxa2 29. Ne7+ (29. Nxe4 Bxf5 30. gxf5 Rxf5 $17) 29... Kh8 30. Ng6+ Kg8 31. Nxe5 (31. Nxf8 Bxg4 32. Rdf1 Bxg3 $14) 31... dxe5 32. Nxe4) 24... bxa3 $1 $17 {[%emt 0:03:09]} 25. h3 {[%emt 0:00:12]} axb2+ {[%emt 0:00:24]} 26. Kc2 {[%emt 0:00:09]} a4 {[%emt 0:02:00]} 27. Qc3 {[%emt 0:00:14] [#]} Nxc4 $2 {[%emt 0:01:01][%mdl 8192]} 28. hxg4 {[%emt 0:00:37]} (28. Qxg7+ $1 $18 Kxg7 29. hxg4 Ne3+ 30. Kxb2 a3+ 31. Ka2 Nxg4 32. Be7) 28... Bxc3 $14 {[%emt 0:00:11]} 29. Kxc3 {[%emt 0:00:06] The board is on fire.} Ne3 {[%emt 0:00:13] [#] aiming for ...a3.} (29... a3 $2 30. Kxc4 fxg4 31. Kb3 (31. Bxe4 a2 $11) 31... c4+ 32. Kxc4 $18 (32. Ka2 Na6 $16)) 30. Rd2 {[%emt 0:03:05]} (30. Kxb2 $1 $16 {[%cal Og3f5] Hoping for Ngxf5!} Nxg4 (30... a3+ 31. Ka2) 31. Be7) 30... a3 $15 {[%emt 0:01:06]} (30... fxg4 $2 31. Nxe4 Na6 32. Nxd6 $18 (32. Re1 Rb8 $14)) 31. Nhxf5 {[%emt 0:02:05]} Nxf5 {[%emt 0:02:35]} 32. gxf5 {[%emt 0:00:41]} Na6 {[%emt 0:00:49] White must now prevent ...Nb4.} 33. Bxe4 {[%emt 0:01:23] And now Be7 would win.} Re8 {[%emt 0:01:01] Against Be7} 34. f6 {[%emt 0:00:30]} Rxe4 {[%emt 0:00:04][%mdl 8192]} 35. Nxe4 $18 {[%emt 0:00:11]} Bf5 {[%emt 0:00:09]} 36. f7+ {[%emt 0:00:24]} Kf8 {[%emt 0:00:45]} 37. Bh6+ {[%emt 0:00:28]} Kxf7 {[%emt 0:00:13]} 38. Nxd6+ {[%emt 0:00:08]} Kg6 {[%emt 0:00:02]} 39. Nxf5 {[%emt 0:00:20]} Kxf5 {[%emt 0:00:07]} 40. g4+ {[%emt 0:00:49]} Kxg4 {[%emt 0:00:20]} 41. d6 {[%emt 0:00:58]} Nb4 {[%emt 0:01:17]} 42. d7 {[%emt 0:00:41]} Nc6 {[%emt 0:00:36]} 43. Bg5 {[%emt 0:00:26]} Rb8 {[%emt 0:00:07]} 44. Rg1+ {[%emt 0:00:59]} (44. Rb1 $18) 44... Kf5 $11 {[%emt 0:00:08]} 45. d8=Q {[%emt 0:00:51]} Nxd8 {[%emt 0:00:14]} 46. Rxd8 {[%emt 0:00:23]} (46. Bxd8 $5 {[%cal Rd2d5]} b1=Q 47. Rxb1 Rxb1 48. Ra2 $11) 46... a2 {[%emt 0:01:47]} 47. Rf8+ $1 {[%emt 0:00:18]} (47. Rxb8 $2 a1=Q 48. Rxb2 (48. Rf8+ $2 Ke4 $19) 48... Qxg1 $19) (47. Rd5+ $2 Ke4 48. Rdd1 b1=Q $19) 47... Ke4 {[%emt 0:02:00]} 48. Re8+ {[%emt 0:00:47]} (48. Rxb8 $2 a1=Q 49. Rxb2 (49. Re8+ $2 Kf3 $19) 49... Qxg1 50. Re2+ Kf3 $19) 48... Kf3 {[%emt 0:00:10]} 49. Ree1 {[%emt 0:00:35][%mdl 8192]} (49. Rxb8 a1=Q 50. Rxa1 bxa1=Q+ 51. Kd2 Qa5+ 52. Kc2 c4 $19) (49. Rf1+ $11 Kg3 50. Rg1+ (50. Rxb8 $2 {loses.} a1=Q $19) 50... Kf3 51. Rf1+ (51. Rxb8 $2 {too greedy.} a1=Q $19) 51... Kg4 52. Rg1+ (52. Rxb8 $2 a1=Q $19) 52... Kf3) 49... b1=Q {[%emt 0:00:16]} 50. Rgf1+ {[%emt 0:00:26]} Kg4 {[%emt 0:00:25]} 51. Rg1+ {[%emt 0:00:28]} Kh5 {[%emt 0:00:40]} 52. Rh1+ {[%emt 0:00:09] [#]} Kg6 $1 {[%emt 0:00:23]} 53. Rh6+ {[%emt 0:00:33]} Kg7 {[%emt 0:00:14] Black mates.} 54. Re7+ {[%emt 0:00:16]} Kg8 {[%emt 0:00:27]} 55. Bf6 {[%emt 0:00:38]} a1=Q+ {[%emt 0:00:11]} 56. Kc4 {[%emt 0:00:05]} Qb3+ {[%emt 0:00:32][%mdl 32768] Both players deserved the win here.  Weighted Error Value: White=0.37/Black=0.32. Loss on time!?} (56... Qaa2+ $142 57. Kxc5 Qb6#) 1-0